fUSD/lending_fUSD_20250609
["ID","MTS","AMOUNT","RATE_DAILY","PERIOD"]
[365130173,1749483050040,-740.69,0.00019178,2]
[365130174,1749483050050,-490.0,0.00019178,2]
[365130175,1749483050059,-1326.67,0.00019178,2]
[365130176,1749483050069,-490.0,0.00019178,2]
[365130177,1749483050078,-1218.2,0.00019178,2]
[365130178,1749483050088,-490.0,0.00019178,2]
[365130179,1749483050098,-490.0,0.00019178,2]
[365130180,1749483050107,-490.0,0.00019178,2]
[365130181,1749483050116,-490.0,0.00019178,2]
[365130182,1749483050126,-666.39,0.00019178,2]
[365130183,1749483050135,-2776.46,0.00019178,2]
[365130184,1749483050144,-490.0,0.00019178,2]
[365130185,1749483050154,-5404.45,0.00019178,2]
[365130186,1749483050164,-550.60390058,0.00019178,2]
[365130187,1749483050174,-490.0,0.00019178,2]
[365130188,1749483050183,-490.0,0.00019178,2]
[365130189,1749483050193,-490.0,0.00019178,2]
[365130190,1749483050203,-490.0,0.00019178,2]
[365130191,1749483050212,-487.3062438,0.00019178,2]
[365130192,1749483050222,-851.39,0.00019178,2]
[365130193,1749483050232,-2145.34,0.00019178,2]
[365130194,1749483050241,-490.0,0.00019178,2]
[365130195,1749483050251,-614.11,0.00019178,2]
[365130196,1749483050260,-727.42,0.00019178,2]
[365130197,1749483050270,-490.0,0.00019178,2]
[365130198,1749483050280,-490.0,0.00019178,2]
[365130199,1749483050290,-490.0,0.00019178,2]
[365130200,1749483050299,-490.0,0.00019178,2]
[365130201,1749483050309,-480.0,0.00019178,2]
[365130202,1749483050319,-393.27875571,0.00019178,2]
[365130203,1749483050328,-490.0,0.00019178,2]
[365130204,1749483050339,-948.79,0.00019178,2]
[365130205,1749483050349,-481.59590456,0.00019178,2]
[365130206,1749483050359,-464.75531448,0.00019178,2]
[365130207,1749483050369,-480.0,0.00019178,2]
[365130208,1749483050378,-480.0,0.00019178,2]
[365130209,1749483050388,-439.11232525,0.00019178,2]
[365130210,1749483050398,-490.0,0.00019178,2]
[365130211,1749483050408,-4070.27,0.00019178,2]
[365130212,1749483050419,-490.0,0.00019178,2]
[365130213,1749483050429,-1459.98,0.00019178,2]
[365130214,1749483050438,-739.98,0.00019178,2]
[365130215,1749483050448,-320.0,0.00019178,2]
[365130216,1749483050458,-1063.03,0.00019178,2]
[365130217,1749483050468,-490.0,0.00019178,2]
[365130218,1749483050478,-814.57,0.00019178,2]
[365130219,1749483050488,-490.0,0.00019178,2]
[365130220,1749483050498,-1204.91,0.00019178,2]
[365130221,1749483050508,-586.2,0.00019178,2]
[365130222,1749483050518,-490.0,0.00019178,2]
[365130223,1749483050527,-490.0,0.00019178,2]
[365130224,1749483050537,-490.0,0.00019178,2]
[365130225,1749483050547,-460.0,0.00019178,2]
[365130226,1749483050558,-490.0,0.00019178,2]
[365130227,1749483050568,-1944.74,0.00019178,2]
[365130228,1749483050578,-490.0,0.00019178,2]
[365130229,1749483050588,-490.0,0.00019178,2]
[365130230,1749483050598,-500.0,0.00019178,2]
[365130231,1749483050608,-500.0,0.00019178,2]
[365130232,1749483050619,-500.0,0.00019178,2]
[365130233,1749483050630,-500.0,0.00019178,2]
[365130234,1749483050640,-500.0,0.00019178,2]
[365130235,1749483050650,-500.0,0.00019178,2]
[365130236,1749483050662,-500.0,0.00019178,2]
[365130237,1749483050676,-500.0,0.00019178,2]
[365130238,1749483050686,-500.0,0.00019178,2]
[365130239,1749483050697,-500.0,0.00019178,2]
[365130240,1749483050708,-500.0,0.00019178,2]
[365130241,1749483050718,-500.0,0.00019178,2]
[365130242,1749483050729,-886.64,0.00019178,2]
[365130243,1749483050739,-500.0,0.00019178,2]
[365130244,1749483050750,-500.0,0.00019178,2]
[365130245,1749483050761,-500.0,0.00019178,2]
[365130246,1749483050771,-953.43,0.00019178,2]
[365130247,1749483050781,-500.0,0.00019178,2]
[365130248,1749483050791,-584.61462656,0.00019178,2]
[365130249,1749483050801,-490.0,0.00019178,2]
[365130250,1749483050811,-607.32074244,0.00019178,2]
[365130251,1749483050821,-1352.01,0.00019178,2]
[365130252,1749483050831,-490.0,0.00019178,2]
[365130253,1749483050841,-2419.77,0.00019178,2]
[365130254,1749483050850,-1415.02,0.00019178,2]
[365130255,1749483050860,-488.00268727,0.00019178,2]
[365130256,1749483050870,-3460.39,0.00019178,2]
[365130257,1749483050881,-1421.95,0.00019178,2]
[365130258,1749483050891,-490.0,0.00019178,2]
[365130259,1749483050901,-460.0,0.00019178,2]
[365130260,1749483050911,-490.0,0.00019178,2]
[365130261,1749483050921,-490.0,0.00019178,2]
[365130262,1749483050931,-490.0,0.00019178,2]
[365130263,1749483050941,-4303.53,0.00019178,2]
[365130264,1749483050951,-975.71,0.00019178,2]
[365130265,1749483050961,-483.54103888,0.00019178,2]
[365130266,1749483050971,-692.34,0.00019178,2]
[365130267,1749483050981,-490.0,0.00019178,2]
[365130268,1749483050990,-490.0,0.00019178,2]
[365130269,1749483051000,-2516.42,0.00019178,2]
[365130270,1749483051010,-1244.83,0.00019178,2]
[365130271,1749483051020,-517.11921558,0.00019178,2]
[365130272,1749483051029,-490.0,0.00019178,2]
[365130273,1749483051039,-524.14,0.00019178,2]
[365130274,1749483051049,-533.25399591,0.00019178,2]
[365130275,1749483051059,-490.0,0.00019178,2]
[365130276,1749483051068,-1013.88,0.00019178,2]
[365130277,1749483051078,-490.0,0.00019178,2]
[365130278,1749483051087,-541.8,0.00019178,2]
[365130279,1749483051097,-1557.57,0.00019178,2]
[365130280,1749483051107,-490.0,0.00019178,2]
[365130281,1749483051117,-286.56788474,0.00019178,2]
[365130282,1749483051127,-3062.87,0.00019178,2]
[365130283,1749483051136,-460.0,0.00019178,2]
[365130284,1749483051146,-203.88587429,0.00019178,2]
[365130285,1749483051156,-1852.33,0.00019178,2]
[365130286,1749483051167,-490.0,0.00019178,2]
[365130287,1749483051177,-490.0,0.00019178,2]
[365130288,1749483051187,-629.58,0.00019178,2]
[365130289,1749483051198,-1242.51,0.00019178,2]
[365130290,1749483051208,-505.49,0.00019178,2]
[365130291,1749483051218,-421.87562845,0.00019178,2]
[365130292,1749483051228,-1125.57,0.00019178,2]
[365130293,1749483051238,-490.0,0.00019178,2]
[365130294,1749483051248,-1080.73,0.00019178,2]
[365130295,1749483051258,-490.0,0.00019178,2]
[365130296,1749483051268,-490.0,0.00019178,2]
[365130297,1749483051278,-304.96566997,0.00019178,2]
[365130298,1749483051288,-420.0,0.00019178,2]
[365130299,1749483051298,-4018.09,0.00019178,2]
[365130300,1749483051308,-460.0,0.00019178,2]
[365130301,1749483051318,-642.78,0.00019178,2]
[365130302,1749483051328,-938.21,0.00019178,2]
[365130303,1749483051338,-490.0,0.00019178,2]
[365130304,1749483051348,-490.0,0.00019178,2]
[365130305,1749483051358,-920.15,0.00019178,2]
[365130306,1749483051368,-490.0,0.00019178,2]
[365130307,1749483051379,-1841.33,0.00019178,2]
[365130308,1749483051389,-396.61902588,0.00019178,2]
[365130309,1749483051399,-748.52,0.00019178,2]
[365130310,1749483051410,-26122.19,0.00019178,2]
[365130311,1749483051420,-490.0,0.00019178,2]
[365130312,1749483051430,-421.31116083,0.00019178,2]
[365130313,1749483051440,-490.0,0.00019178,2]
[365130314,1749483051450,-490.0,0.00019178,2]
[365130315,1749483051460,-645.47,0.00019178,2]
[365130316,1749483051470,-614.35,0.00019178,2]
[365130317,1749483051480,-1169.41,0.00019178,2]
[365130318,1749483051490,-953.65,0.00019178,2]
[365130319,1749483051499,-1000.0,0.00019178,2]
[365130320,1749483051509,-3449.02,0.00019178,2]
[365130321,1749483051519,-490.0,0.00019178,2]
[365130322,1749483051529,-3449.02,0.00019178,2]
[365130323,1749483051539,-490.0,0.00019178,2]
[365130324,1749483051548,-3449.02,0.00019178,2]
[365130325,1749483051558,-484.13160525,0.00019178,2]
[365130326,1749483051568,-824.76,0.00019178,2]
[365130327,1749483051578,-490.0,0.00019178,2]
[365130328,1749483051587,-490.0,0.00019178,2]
[365130329,1749483051597,-490.0,0.00019178,2]
[365130330,1749483051607,-490.0,0.00019178,2]
[365130331,1749483051616,-490.0,0.00019178,2]
[365130332,1749483051626,-480.0,0.00019178,2]
[365130333,1749483051636,-490.0,0.00019178,2]
[365130334,1749483051645,-490.0,0.00019178,2]
[365130335,1749483051655,-1050.17,0.00019178,2]
[365130336,1749483051667,-490.0,0.00019178,2]
[365130337,1749483051679,-1765.84,0.00019178,2]
[365130338,1749483051689,-460.0,0.00019178,2]
[365130339,1749483051699,-490.0,0.00019178,2]
[365130340,1749483051708,-490.0,0.00019178,2]
[365130341,1749483051719,-420.0,0.00019178,2]
[365130342,1749483051728,-490.0,0.00019178,2]
[365130343,1749483051738,-2739.13,0.00019178,2]
[365130344,1749483051750,-1551.73,0.00019178,2]
[365130345,1749483051760,-485.37424008,0.00019178,2]
[365130346,1749483051770,-1308.87,0.00019178,2]
[365130347,1749483051779,-490.0,0.00019178,2]
[365130348,1749483051789,-460.0,0.00019178,2]
[365130349,1749483051799,-490.0,0.00019178,2]
[365130350,1749483051809,-2089.49,0.00019178,2]
[365130351,1749483051819,-490.0,0.00019178,2]
[365130352,1749483051828,-778.19,0.00019178,2]
[365130353,1749483051838,-480.0,0.00019178,2]
[365130354,1749483051848,-490.0,0.00019178,2]
[365130355,1749483051858,-490.0,0.00019178,2]
[365130356,1749483051867,-490.0,0.00019178,2]
[365130357,1749483051877,-1254.72,0.00019178,2]
[365130358,1749483051887,-490.0,0.00019178,2]
[365130359,1749483051898,-462.31849875,0.00019178,2]
[365130360,1749483051907,-2525.32,0.00019178,2]
[365130361,1749483051917,-2191.05,0.00019178,2]
[365130362,1749483051927,-490.0,0.00019178,2]
[365130363,1749483051937,-490.0,0.00019178,2]
[365130364,1749483051947,-1226.09,0.00019178,2]
[365130365,1749483051958,-703.6,0.00019178,2]
[365130366,1749483051968,-993.93,0.00019178,2]
[365130367,1749483051978,-460.0,0.00019178,2]
[365130368,1749483051988,-490.0,0.00019178,2]
[365130369,1749483051997,-490.0,0.00019178,2]
[365130370,1749483052007,-490.0,0.00019178,2]
[365130371,1749483052016,-490.0,0.00019178,2]
[365130372,1749483052026,-490.0,0.00019178,2]
[365130373,1749483052036,-490.0,0.00019178,2]
[365130374,1749483052045,-671.2,0.00019178,2]
[365130375,1749483052055,-1367.32,0.00019178,2]
[365130376,1749483052065,-480.0,0.00019178,2]
[365130377,1749483052075,-490.0,0.00019178,2]
[365130378,1749483052084,-460.0,0.00019178,2]
[365130379,1749483052094,-490.0,0.00019178,2]
[365130380,1749483052103,-862.74,0.00019178,2]
[365130381,1749483052113,-862.74,0.00019178,2]
[365130382,1749483052123,-490.0,0.00019178,2]
[365130383,1749483052132,-490.0,0.00019178,2]
[365130384,1749483052142,-490.0,0.00019178,2]
[365130385,1749483052152,-490.0,0.00019178,2]
[365130386,1749483052162,-490.0,0.00019178,2]
[365130387,1749483052172,-970.1,0.00019178,2]
[365130388,1749483052181,-566.86,0.00019178,2]
[365130389,1749483052191,-490.0,0.00019178,2]
[365130390,1749483052201,-500.0,0.00019178,2]
[365130391,1749483052211,-490.0,0.00019178,2]
[365130392,1749483052220,-248.78,0.00019178,2]
[365130393,1749483052231,-490.0,0.00019178,2]
[365130394,1749483052241,-1010.39,0.00019178,2]
[365130395,1749483052250,-480.0,0.00019178,2]
[365130396,1749483052260,-1841.11,0.00019178,2]
[365130397,1749483052270,-819.57,0.00019178,2]
[365130398,1749483052280,-490.0,0.00019178,2]
[365130399,1749483052290,-490.0,0.00019178,2]
[365130400,1749483052300,-490.0,0.00019178,2]
[365130401,1749483052310,-6838.69,0.00019178,2]
[365130402,1749483052320,-970.22,0.00019178,2]
[365130403,1749483052330,-1832.43,0.00019178,2]
[365130404,1749483052339,-708.32,0.00019178,2]
[365130405,1749483052349,-490.0,0.00019178,2]
[365130406,1749483052359,-490.0,0.00019178,2]
[365130407,1749483052369,-742.39,0.00019178,2]
[365130408,1749483052379,-1673.65,0.00019178,2]
[365130409,1749483052389,-8188.76,0.00019178,2]
[365130410,1749483052399,-831.6,0.00019178,2]
[365130411,1749483052409,-602.8,0.00019178,2]
[365130412,1749483052419,-480.0,0.00019178,2]
[365130413,1749483052430,-490.0,0.00019178,2]
[365130414,1749483052439,-925.42,0.00019178,2]
[365130415,1749483052450,-490.0,0.00019178,2]
[365130416,1749483052460,-490.0,0.00019178,2]
[365130417,1749483052470,-490.0,0.00019178,2]
[365130418,1749483052480,-490.0,0.00019178,2]
[365130419,1749483052749,-2014.14,0.00019178,2]
[365130420,1749483052760,-490.0,0.00019178,2]
[365130421,1749483052770,-490.0,0.00019178,2]
[365130422,1749483052780,-1090.2,0.00019178,2]
[365130423,1749483052790,-490.0,0.00019178,2]
[365130424,1749483052799,-644.98,0.00019178,2]
[365130425,1749483052809,-480.0,0.00019178,2]
[365130426,1749483052818,-490.0,0.00019178,2]
[365130427,1749483052829,-490.0,0.00019178,2]
[365130428,1749483052839,-490.0,0.00019178,2]
[365130429,1749483052848,-303.23753978,0.00019178,2]
[365130430,1749483052857,-724.77,0.00019178,2]
[365130431,1749483052867,-490.0,0.00019178,2]
[365130432,1749483052877,-2539.29,0.00019178,2]
[365130433,1749483052886,-2871.58,0.00019178,2]
[365130434,1749483052896,-1188.14,0.00019178,2]
[365130435,1749483052906,-490.0,0.00019178,2]
[365130436,1749483052916,-490.0,0.00019178,2]
[365130437,1749483052926,-490.0,0.00019178,2]
[365130438,1749483052936,-490.0,0.00019178,2]
[365130439,1749483052945,-480.0,0.00019178,2]
[365130440,1749483052955,-709.96,0.00019178,2]
[365130441,1749483052964,-490.0,0.00019178,2]
[365130442,1749483052974,-1703.54,0.00019178,2]
[365130443,1749483052983,-490.0,0.00019178,2]
[365130444,1749483052993,-490.0,0.00019178,2]
[365130445,1749483053003,-814.11,0.00019178,2]
[365130446,1749483053012,-490.0,0.00019178,2]
[365130447,1749483053022,-460.0,0.00019178,2]
[365130448,1749483053031,-490.0,0.00019178,2]
[365130449,1749483053041,-14155.07,0.00019178,2]
[365130450,1749483053050,-14155.07,0.00019178,2]
[365130451,1749483053059,-506.3636021,0.00019178,2]
[365130452,1749483053068,-490.0,0.00019178,2]
[365130453,1749483053077,-490.0,0.00019178,2]
[365130454,1749483053087,-14155.07,0.00019178,2]
[365130455,1749483053096,-1815.16,0.00019178,2]
[365130456,1749483053106,-380.0,0.00019178,2]
[365130457,1749483053116,-490.0,0.00019178,2]
[365130458,1749483053126,-3950.58,0.00019178,2]
[365130459,1749483053137,-490.0,0.00019178,2]
[365130460,1749483053148,-490.0,0.00019178,2]
[365130461,1749483053157,-460.0,0.00019178,2]
[365130462,1749483053167,-490.0,0.00019178,2]
[365130463,1749483053177,-885.2,0.00019178,2]
[365130464,1749483053186,-490.0,0.00019178,2]
[365130465,1749483053196,-480.0,0.00019178,2]
[365130466,1749483053205,-1288.49,0.00019178,2]
[365130467,1749483053215,-490.0,0.00019178,2]
[365130468,1749483053224,-525.34892681,0.00019178,2]
[365130469,1749483053234,-490.0,0.00019178,2]
[365130470,1749483053244,-490.0,0.00019178,2]
[365130471,1749483053253,-228.80565482,0.00019178,2]
[365130472,1749483053263,-490.0,0.00019178,2]
[365130473,1749483053272,-490.0,0.00019178,2]
[365130474,1749483053282,-490.0,0.00019178,2]
[365130475,1749483053291,-490.0,0.00019178,2]
[365130476,1749483053301,-490.0,0.00019178,2]
[365130477,1749483053310,-490.0,0.00019178,2]
[365130478,1749483053320,-497.62,0.00019178,2]
[365130479,1749483053329,-508.1928601,0.00019178,2]
[365130480,1749483053339,-490.0,0.00019178,2]
[365130481,1749483053348,-859.17,0.00019178,2]
[365130482,1749483053358,-490.0,0.00019178,2]
[365130483,1749483053367,-2227.26,0.00019178,2]
[365130484,1749483053376,-1681.21,0.00019178,2]
[365130485,1749483053386,-714.99,0.00019178,2]
[365130486,1749483053396,-490.0,0.00019178,2]
[365130487,1749483053406,-682.94,0.00019178,2]
[365130488,1749483053417,-490.0,0.00019178,2]
[365130489,1749483053427,-1615.3,0.00019178,2]
[365130490,1749483053437,-490.0,0.00019178,2]
[365130491,1749483053447,-490.0,0.00019178,2]
[365130492,1749483053458,-515.56,0.00019178,2]
[365130493,1749483053467,-718.28,0.00019178,2]
[365130494,1749483053477,-824.54,0.00019178,2]
[365130495,1749483053486,-490.0,0.00019178,2]
[365130496,1749483053495,-490.0,0.00019178,2]
[365130497,1749483053504,-490.0,0.00019178,2]
[365130498,1749483053514,-490.0,0.00019178,2]
[365130499,1749483053524,-490.0,0.00019178,2]
[365130500,1749483053533,-151.0,0.00019178,2]
[365130501,1749483053542,-169.3,0.00019178,2]
[365130502,1749483053552,-436.37492174,0.00019178,2]
[365130503,1749483053562,-550.0,0.000192,2]
[365130504,1749483053571,-150.0,0.00019204,2]
[365130505,1749483053580,-150.0,0.00019204,2]
[365130506,1749483053589,-150.0,0.00019204,2]
[365130507,1749483053599,-150.0,0.00019204,2]
[365130508,1749483053608,-500.0,0.00019204,2]
[365130509,1749483053617,-150.0,0.00019205,2]
[365130510,1749483053627,-298.0051257,0.00019205,2]
[365130511,1749483053637,-1007.13,0.00019205,30]
[365130512,1749483053647,-2264.10087164,0.00019225,2]
[365130513,1749483053656,-223.75230494,0.00019232,2]
[365130514,1749483053666,-250.0,0.00019232,2]
[365130515,1749483053676,-150.0,0.00019232,2]
[365130516,1749483053690,-150.0,0.00019232,2]
[365130517,1749483053699,-500.0,0.00019232,2]
[365130518,1749483053709,-150.0,0.00019233,2]
[365130519,1749483053719,-202.0,0.0001924,4]
[365130520,1749483053729,-160.30486295,0.00019242,2]
[365130521,1749483053738,-219.5016916,0.00019242,2]
[365130522,1749483053748,-150.0,0.00019259,2]
[365130523,1749483053757,-200.0,0.00019259,2]
[365130524,1749483053767,-500.0,0.00019259,2]
[365130525,1749483053776,-150.0,0.0001926,2]
[365130526,1749483053786,-676.8312718,0.00019261,2]
[365130527,1749483053796,-5959.13767469,0.00019261,2]
[365130528,1749483053806,-2347.87260389,0.0001928,2]
[365130529,1749483053815,-150.0,0.00019287,2]
[365130530,1749483053824,-500.0,0.00019287,2]
[365130531,1749483053834,-265.47735999,0.00019288,2]
[365130532,1749483053844,-150.0,0.00019314,2]
[365130533,1749483053854,-500.0,0.00019314,2]
[365130534,1749483053863,-153.26403468,0.00019332,2]
[365130535,1749483053873,-2434.74389024,0.00019335,2]
[365130536,1749483053883,-150.99,0.00019339,2]
[365130537,1749483053892,-3449.02,0.0001934,2]
[365130538,1749483053901,-14155.07,0.0001934,2]
[365130539,1749483053911,-500.0,0.00019341,2]
[365130540,1749483053921,-500.0,0.00019341,2]
[365130541,1749483053931,-500.0,0.00019341,2]
[365130542,1749483053940,-500.0,0.00019341,2]
[365130543,1749483053950,-500.0,0.00019341,2]
[365130544,1749483053961,-515.22003817,0.00019341,2]
[365130545,1749483053971,-500.0,0.00019341,2]
[365130546,1749483053980,-500.0,0.00019341,2]
[365130547,1749483053990,-500.0,0.00019341,2]
[365130548,1749483053999,-500.0,0.00019341,2]
[365130549,1749483054009,-278.69,0.00019341,2]
[365130550,1749483054018,-500.0,0.00019341,2]
[365130551,1749483054027,-500.0,0.00019341,2]
[365130552,1749483054037,-3449.02,0.00019341,2]
[365130553,1749483054047,-3449.02,0.00019341,2]
[365130554,1749483054055,-862.74,0.00019341,2]
[365130555,1749483054065,-862.74,0.00019341,2]
[365130556,1749483054075,-14155.07,0.00019341,2]
[365130557,1749483054084,-14155.07,0.00019341,2]
[365130558,1749483054094,-500.0,0.00019341,2]
[365130559,1749483054103,-312.03846027,0.00019342,2]
[365130560,1749483054113,-409.22795996,0.00019342,2]
[365130561,1749483054122,-270.0,0.00019342,2]
[365130562,1749483054132,-490.0,0.00019342,2]
[365130563,1749483054142,-586.85529705,0.00019342,2]
[365130564,1749483054151,-638.50635678,0.00019342,2]
[365130565,1749483054160,-490.0,0.00019342,2]
[365130566,1749483054169,-490.0,0.00019342,2]
[365130567,1749483054179,-191.48814708,0.00019342,2]
[365130568,1749483054188,-490.0,0.00019342,2]
[365130569,1749483054197,-490.0,0.00019342,2]
[365130570,1749483054207,-319.06927082,0.00019342,2]
[365130571,1749483054216,-490.0,0.00019342,2]
[365130572,1749483054226,-490.0,0.00019342,2]
[365130573,1749483054236,-500.32669736,0.00019342,2]
[365130574,1749483054245,-633.20371344,0.00019342,2]
[365130575,1749483054255,-490.0,0.00019342,2]
[365130576,1749483054265,-300.0,0.00019342,2]
[365130577,1749483054276,-492.21182974,0.00019342,2]
[365130578,1749483054287,-490.0,0.00019342,2]
[365130579,1749483054297,-490.0,0.00019342,2]
[365130580,1749483054307,-524.63,0.00019342,2]
[365130581,1749483054317,-196.30007334,0.00019342,2]
[365130582,1749483054326,-490.0,0.00019342,2]
[365130583,1749483054336,-478.80105212,0.00019342,2]
[365130584,1749483054345,-490.0,0.00019342,2]
[365130585,1749483054355,-706.07,0.00019342,2]
[365130586,1749483054364,-490.0,0.00019342,2]
[365130587,1749483054375,-490.0,0.00019342,2]
[365130588,1749483054386,-273.445596,0.00019342,2]
[365130589,1749483054396,-450.0,0.00019342,2]
[365130590,1749483054408,-327.99921344,0.00019342,2]
[365130591,1749483054420,-382.3645859,0.00019342,2]
[365130592,1749483054430,-250.0,0.00019342,2]
[365130593,1749483054439,-490.0,0.00019342,2]
[365130594,1749483054449,-494.49,0.00019342,2]
[365130595,1749483054459,-450.0,0.00019342,2]
[365130596,1749483054468,-569.29,0.00019342,2]
[365130597,1749483054478,-490.0,0.00019342,2]
[365130598,1749483054487,-490.0,0.00019342,2]
[365130599,1749483054497,-450.0,0.00019342,2]
[365130600,1749483054507,-470.0,0.00019342,2]
[365130601,1749483054517,-490.0,0.00019342,2]
[365130602,1749483054526,-490.0,0.00019342,2]
[365130603,1749483054536,-490.0,0.00019342,2]
[365130604,1749483054545,-490.0,0.00019342,2]
[365130605,1749483054555,-490.0,0.00019342,2]
[365130606,1749483054564,-490.0,0.00019342,2]
[365130607,1749483054574,-490.0,0.00019342,2]
[365130608,1749483054583,-490.0,0.00019342,2]
[365130609,1749483054593,-490.0,0.00019342,2]
[365130610,1749483054603,-490.0,0.00019342,2]
[365130611,1749483054613,-490.0,0.00019342,2]
[365130612,1749483054622,-490.0,0.00019342,2]
[365130613,1749483054632,-490.0,0.00019342,2]
[365130614,1749483054642,-490.0,0.00019342,2]
[365130615,1749483054651,-490.0,0.00019342,2]
[365130616,1749483054661,-550.21,0.00019342,2]
[365130617,1749483054670,-490.0,0.00019342,2]
[365130618,1749483054679,-385.21589927,0.00019342,2]
[365130619,1749483054692,-490.0,0.00019342,2]
[365130620,1749483054701,-490.0,0.00019342,2]
[365130621,1749483054710,-490.0,0.00019342,2]
[365130622,1749483054718,-490.0,0.00019342,2]
[365130623,1749483054727,-490.0,0.00019342,2]
[365130624,1749483054736,-490.0,0.00019342,2]
[365130625,1749483054745,-638.24234419,0.00019342,2]
[365130626,1749483054753,-490.0,0.00019342,2]
[365130627,1749483054763,-490.0,0.00019342,2]
[365130628,1749483054771,-490.0,0.00019342,2]
[365130629,1749483054781,-490.0,0.00019342,2]
[365130630,1749483054790,-490.0,0.00019342,2]
[365130631,1749483054799,-450.0,0.00019342,2]
[365130632,1749483054807,-450.0,0.00019342,2]
[365130633,1749483054816,-490.0,0.00019342,2]
[365130634,1749483054825,-490.0,0.00019342,2]
[365130635,1749483054834,-241.27607572,0.00019342,2]
[365130636,1749483054844,-490.0,0.00019342,2]
[365130637,1749483054854,-490.0,0.00019342,2]
[365130638,1749483054864,-490.0,0.00019342,2]
[365130639,1749483054873,-490.0,0.00019342,2]
[365130640,1749483054884,-490.0,0.00019342,2]
[365130641,1749483054894,-512.54565133,0.00019342,2]
[365130642,1749483054903,-825.08,0.00019342,2]
[365130643,1749483054914,-456.09508119,0.00019342,2]
[365130644,1749483054923,-490.0,0.00019342,2]
[365130645,1749483054933,-490.0,0.00019342,2]
[365130646,1749483054942,-490.0,0.00019342,2]
[365130647,1749483054952,-490.0,0.00019342,2]
[365130648,1749483054962,-490.0,0.00019342,2]
[365130649,1749483054971,-490.0,0.00019342,2]
[365130650,1749483054981,-490.0,0.00019342,2]
[365130651,1749483054990,-562.85,0.00019342,2]
[365130652,1749483054999,-490.0,0.00019342,2]
[365130653,1749483055009,-490.0,0.00019342,2]
[365130654,1749483055091,-490.0,0.00019342,2]
[365130655,1749483055100,-1751.15,0.00019342,2]
[365130656,1749483055110,-490.0,0.00019342,2]
[365130657,1749483055120,-490.0,0.00019342,2]
[365130658,1749483055130,-490.0,0.00019342,2]
[365130659,1749483055139,-295.76751787,0.00019342,2]
[365130660,1749483055148,-490.0,0.00019342,2]
[365130661,1749483055158,-357.04767916,0.00019342,2]
[365130662,1749483055168,-490.0,0.00019342,2]
[365130663,1749483055178,-490.0,0.00019342,2]
[365130664,1749483055187,-236.57405627,0.00019342,2]
[365130665,1749483055197,-490.0,0.00019342,2]
[365130666,1749483055206,-490.0,0.00019342,2]
[365130667,1749483055216,-490.0,0.00019342,2]
[365130668,1749483055226,-490.0,0.00019342,2]
[365130669,1749483055235,-490.0,0.00019342,2]
[365130670,1749483055244,-490.0,0.00019342,2]
[365130671,1749483055254,-450.0,0.00019342,2]
[365130672,1749483055263,-450.0,0.00019342,2]